bitfinex/quotes_ETHUSD_20241204
["timestamp","ask_amount","ask_price","bid_price","bid_amount"]
[1733330841715,1.5338,3766.9,3765.5,3.0]
[1733330841918,1.5338,3766.9,3766.5,2.65497]
[1733330842550,1.6416,3767.5,3766.6,0.02654136]
[1733330842715,1.6416,3767.5,3765.7,3.0]
[1733330842716,1.6416,3767.5,3765.8,0.02654136]
[1733330842923,1.6416,3767.5,3766.7,2.65483]
[1733330843118,1.6416,3767.5,3766.8,0.0265396]
[1733330843320,1.6416,3767.5,3766.8,2.6812996]
[1733330843545,1.6416,3767.5,3767.2,2.65448]
[1733330843707,1.6416,3767.5,3766.3,1.6601]
[1733330843909,1.6416,3767.5,3764.9,0.2]
[1733330843910,0.16416,3767.4,3765.8,0.55]
[1733330844142,1.6416,3767.5,3766.0,3.0]
[1733330844444,1.6542,3768.2,3766.6,2.65491]
[1733330844618,1.6542,3768.2,3766.9,2.6547]
[1733330844959,1.6542,3769.2,3767.0,0.55]
[1733330845109,1.6542,3769.2,3768.2,2.65375]
[1733330845310,0.16542,3769.1,3767.9,2.65393]
[1733330845551,0.16542,3769.1,3767.6,2.6542]
[1733330845850,1.6542,3769.2,3768.2,2.65377]
[1733330846053,1.6542,3769.2,3767.9,2.65393]
[1733330846209,1.6542,3769.2,3768.1,2.65385]
[1733330846544,2.65294,3769.4,3767.6,2.6542]
[1733330846545,1.6569,3768.5,3767.6,2.65414]
[1733330846750,1.6569,3768.5,3767.7,2.65413]
[1733330847057,1.82259,3768.5,3766.8,0.55]
[1733330847344,1.82259,3768.5,3767.3,2.6544]
[1733330847648,2.65366,3768.4,3767.2,2.65448]
[1733330847947,1.82259,3768.5,3766.9,2.65463]
[1733330847948,2.65372,3768.3,3766.9,2.65463]
[1733330848163,1.82259,3768.5,3766.9,2.65463]
[1733330848311,0.447603,3768.4,3766.7,2.65483]
[1733330848517,2.65398,3768.0,3766.6,2.65491]
[1733330848827,2.65421,3767.6,3765.8,4.26623]
[1733330849022,4.25061,3768.1,3765.8,4.26623]
[1733330849023,0.52917329,3767.7,3765.8,4.26623]
[1733330849210,0.52917329,3767.7,3766.5,2.65497]
[1733330849405,2.65442,3767.3,3765.9,2.6554]
[1733330849649,0.265442,3767.2,3765.7,2.65549]
[1733330849946,1.5967,3767.6,3766.4,2.65504]
[1733330850155,4.25091,3767.6,3766.4,2.65504]
[1733330850452,4.25091,3767.6,3766.2,2.65518]
[1733330850453,2.65428,3767.5,3766.2,2.65518]
[1733330850651,1.5539,3768.9,3768.1,2.65379]
[1733330850947,1.5539,3768.9,3766.4,2.65505]
[1733330850948,1.5539,3768.9,3766.7,0.55]
[1733330851123,1.5539,3768.9,3767.8,2.65404]
[1733330851124,0.20966795,3768.8,3767.8,2.65404]
[1733330851536,0.20966795,3768.8,3766.6,1.6517]
[1733330851769,1.5584,3768.5,3765.9,1.524]
[1733330851913,4.2124,3767.9,3765.9,4.17933]
[1733330852112,1.5584,3767.9,3765.9,4.17933]
[1733330852445,3.337671,3767.8,3766.4,2.65505]
[1733330852655,2.65436,3767.4,3765.9,2.65539]
[1733330852879,2.65436,3767.4,3765.6,2.65558]
[1733330852880,1.5682,3767.7,3765.3,1.5688]
[1733330853041,1.5682,3767.7,3766.8,2.65475]
[1733330853243,1.5682,3767.7,3766.6,2.65488]
[1733330853440,0.172404,3767.6,3766.6,2.65488]
[1733330853639,0.172404,3767.6,3766.0,2.65529]
[1733330853640,0.172404,3767.6,3766.5,2.65495]
[1733330853937,0.172404,3767.6,3765.6,2.65561]
[1733330854456,0.172404,3767.6,3765.3,1.5688]
[1733330854663,0.172404,3767.6,3765.5,2.65568]
[1733330854978,0.4394674,3767.5,3766.5,2.65496]
[1733330855187,0.172404,3767.6,3766.3,0.55]
[1733330855334,0.172404,3767.6,3765.9,3.20533]
[1733330855669,3.0,3767.0,3764.5,1.5154]
[1733330855988,1.638,3766.1,3765.0,2.65602]
[1733330856288,2.75442,3767.3,3763.8,1.062851]
[1733330856289,0.2,3767.4,3765.1,2.65597]
[1733330856477,1.558,3767.2,3767.1,2.65456]
[1733330856773,1.5498,3768.7,3767.1,2.65456]
[1733330856979,1.5498,3768.4,3767.1,2.65456]
[1733330857163,1.5498,3768.4,3767.2,2.65445]
[1733330857333,0.52259987,3768.1,3766.5,0.55]
[1733330857536,0.52259987,3768.1,3767.0,2.65463]
[1733330857735,0.52259987,3768.1,3766.7,2.65481]
[1733330857976,0.52259987,3768.1,3767.2,2.65448]
[1733330858275,1.5498,3768.4,3767.3,2.65438]
[1733330858434,0.17257468,3768.3,3767.3,2.65438]
[1733330858637,0.17257468,3768.3,3766.6,1.5424]
[1733330858861,0.52792993,3768.2,3766.8,2.65477]
[1733330859182,0.52792993,3768.2,3767.0,2.65456]
[1733330859346,1.5077,3768.1,3766.5,2.65498]
[1733330859544,1.5077,3768.1,3766.4,0.55]
[1733330859545,0.48619246,3768.0,3766.7,2.65477]
[1733330859730,0.52792993,3768.2,3766.3,2.65507]
[1733330859731,0.52792993,3768.2,3766.3,1.6176]
[1733330859933,1.598,3769.5,3766.5,0.1]
[1733330860171,0.52968244,3769.4,3767.3,3.0]
[1733330860334,0.52968244,3769.4,3766.8,1.6176]
[1733330860535,0.52968244,3769.4,3769.1,2.65313]
[1733330860877,0.52968244,3769.4,3767.9,1.6171]
[1733330860878,0.21276824,3769.3,3767.9,1.6171]
[1733330861182,0.52968244,3769.4,3768.8,2.65331]
[1733330861679,0.52968244,3769.4,3767.7,3.0]
[1733330861835,0.52968244,3769.4,3768.1,2.65385]
[1733330862032,0.52968244,3769.4,3768.0,0.55]
[1733330862281,0.52968244,3769.4,3769.0,2.65322]
[1733330862584,0.74245068,3769.4,3768.4,2.65358]
[1733330862967,5.0,3770.0,3767.9,4.5563]
[1733330863144,5.0,3770.0,3769.5,2.6528]
[1733330863345,5.0,3770.0,3769.9,2.65259]
[1733330864537,1.16022124,3773.0,3770.7,2.65202]
[1733330864538,1.6267,3772.4,3770.7,2.65202]
[1733330864737,2.65093,3772.3,3770.0,2.65251]
[1733330864934,0.427763,3772.2,3771.0,2.6518]
[1733330865240,1.6267,3772.3,3771.1,2.65168]
[1733330865436,1.6267,3772.3,3770.2,2.65237]
[1733330865878,1.6267,3772.3,3770.1,0.55]
[1733330866050,1.6267,3772.3,3771.1,2.65169]
[1733330866846,1.6267,3772.3,3770.9,2.65186]
[1733330867163,0.54151298,3771.3,3771.0,2.65181]
[1733330867686,0.54151298,3771.3,3770.1,1.5015]
[1733330867889,0.54151298,3771.3,3771.1,2.65174]
[1733330868246,0.54151298,3771.3,3771.2,0.0265112]
[1733330868485,1.6267,3772.3,3772.2,2.65097]
[1733330868646,1.5362,3773.6,3772.3,2.65089]
[1733330868847,0.645863,3773.5,3772.3,2.65089]
[1733330869082,0.645863,3773.5,3771.6,0.55]
[1733330869282,1.5362,3773.6,3772.7,2.65057]
[1733330869586,0.2,3774.4,3772.8,1.56279907]
[1733330869587,1.5362,3774.3,3772.8,1.56279907]
[1733330869891,1.5058,3773.6,3771.9,2.65118]
[1733330870046,1.5058,3773.6,3771.6,3.20139]
[1733330870446,1.5058,3773.6,3772.0,2.65105]
[1733330870746,1.7797,3774.4,3772.1,1.54369899]
[1733330871057,2.29749127,3774.4,3773.6,2.64992]
[1733330871258,2.29749127,3774.4,3772.9,0.55]
[1733330871574,1.7797,3774.4,3773.8,2.64982]
[1733330871926,1.7797,3774.4,3773.5,2.65]
[1733330872226,1.7797,3774.4,3773.6,2.64995]
[1733330872526,1.7797,3774.4,3773.8,2.64982]
[1733330872727,1.7797,3774.4,3773.7,2.6499]
[1733330872913,1.7797,3774.4,3773.3,3.0]
[1733330873231,5.5,3774.0,3772.1,4.5172]
[1733330873381,5.5,3774.0,3772.3,2.6509]
[1733330873734,5.5,3774.0,3771.7,3.50624907]
[1733330873735,5.0,3774.0,3773.3,1.5201]
[1733330873888,5.0,3774.0,3773.9,2.48984396]
[1733330874091,5.0,3774.0,3773.8,2.64984]
[1733330875381,5.0,3774.0,3773.9,2.1916]
[1733330875382,2.3503,3774.0,3773.9,2.1916]
[1733330875925,2.3503,3774.0,3773.9,5.1916]
[1733330876126,1e-05,3774.0,3773.9,5.1916]
[1733330876833,0.53033735,3774.6,3774.5,2.64935]
[1733330877052,1.6163,3776.4,3775.5,2.64861]
[1733330877192,1.6163,3776.4,3774.8,3.0]
[1733330877537,1.6163,3776.4,3774.6,2.64928]
[1733330877538,1.6163,3776.4,3774.7,3.0]
[1733330877692,1.6163,3776.4,3775.3,2.64876]
[1733330877887,1.6163,3776.4,3775.4,2.64872]
[1733330878129,1.6163,3776.4,3775.5,2.64861]
[1733330878605,1.6163,3776.4,3775.5,3.0]
[1733330878803,1.6163,3776.4,3775.5,5.64864]
[1733330879991,1.6163,3776.4,3775.4,3.0]
[1733330880193,1.6163,3776.4,3775.1,3.0]
[1733330880396,1.6163,3776.4,3774.6,2.64924]
[1733330880597,1.6163,3776.4,3775.2,2.64885]
[1733330880831,1.6163,3776.4,3775.5,3.0]
[1733330881036,1.6163,3776.4,3775.5,2.64863]
[1733330881189,1.5002,3775.6,3774.2,3.0]
[1733330881508,0.55,3775.5,3774.6,3.0]
[1733330881708,0.22138856,3775.4,3774.6,3.0]
[1733330882120,0.22138856,3775.4,3774.0,0.02648119]
[1733330882121,0.22138856,3775.4,3774.0,3.02648119]
[1733330882434,0.22138856,3775.4,3773.9,1.6416]
[1733330882637,0.22138856,3775.4,3774.4,2.6494]
[1733330882792,1.5002,3775.6,3774.1,2.64963]
[1733330883000,1.5302,3776.1,3774.2,0.02648826]
[1733330883247,1.5302,3776.1,3775.6,2.64858]
[1733330883412,1.5302,3776.1,3775.6,3.0]
[1733330883827,1.5302,3776.1,3775.0,3.0]
[1733330884038,1.5302,3776.1,3775.4,3.0]
[1733330884195,1.5302,3776.1,3775.3,2.64879]
[1733330884395,1.5302,3776.1,3775.4,3.0]
[1733330885032,1.5302,3776.1,3775.4,5.6487]
[1733330885234,1.5302,3776.1,3774.4,0.53835065]
[1733330885407,0.52610939,3776.3,3773.5,1.6155]
[1733330885408,2.64883,3775.3,3773.5,1.6155]
[1733330885611,0.55,3775.5,3774.6,2.64927]
[1733330885822,1.612,3775.6,3773.7,2.64991]
[1733330886013,0.1636856,3775.7,3775.6,2.64858]
[1733330886687,0.06365619,3775.7,3775.6,5.67506049]
[1733330887650,0.06365619,3775.7,3775.6,5.64858]
[1733330887952,1.08e-06,3775.7,3775.6,5.67505599]
[1733330888599,1.08e-06,3775.7,3775.5,2.64863]
[1733330888800,1.08e-06,3775.7,3775.0,1.6586]
[1733330889118,1.08e-06,3775.7,3775.6,2.64858]
[1733330889323,1.08e-06,3775.7,3774.6,2.64923]
[1733330889805,1.08e-06,3775.7,3774.2,1.6103]
[1733330890004,1.5305,3775.4,3773.7,2.02304972]
[1733330890300,0.20477596,3775.3,3773.7,2.02304972]
[1733330890769,0.55,3775.2,3773.2,1.6103]
[1733330891344,0.55,3775.2,3772.4,0.37877853]
[1733330891345,1.5305,3774.9,3772.6,1.6103]
[1733330891550,1.5375,3774.2,3772.6,2.65064]
[1733330891760,0.55,3774.1,3772.5,2.65072]
[1733330891970,0.55,3773.9,3772.1,1.6422]
[1733330892333,1.857456,3774.0,3772.1,1.6422]
[1733330892551,1.5375,3774.0,3772.9,2.65047]
[1733330892775,1.5375,3774.0,3772.1,4.29323]
[1733330892776,1.5375,3774.0,3772.2,2.65097]
[1733330893071,1.5375,3774.0,3772.6,2.65069]
[1733330893275,1.5375,3774.0,3773.5,2.65]
[1733330893576,0.55,3773.9,3772.1,1.6422]
[1733330893868,0.55,3773.5,3772.3,2.6509]
[1733330894030,0.55,3773.3,3772.1,2.65102]
[1733330894232,0.55,3772.9,3771.1,1.6089]
[1733330894445,0.55,3772.6,3770.5,1.6089]
[1733330894734,3.20073,3772.6,3771.2,2.65165]
[1733330895047,3.20097,3772.2,3770.9,2.65183]
[1733330895433,0.55,3771.8,3770.9,2.65183]
[1733330895678,1.5875,3771.7,3770.1,0.02651524]
[1733330895861,1.5875,3771.7,3770.8,2.65194]
[1733330896066,0.55,3771.6,3769.7,1.061314]
[1733330896243,0.81709117,3771.6,3770.1,2.65243]
[1733330896570,0.81709117,3771.6,3770.1,2.65238]
[1733330896571,0.55,3771.2,3770.1,2.65238]
[1733330896748,0.55,3771.2,3768.9,4.76658006]
[1733330896749,0.55,3771.2,3769.7,2.65273]
[1733330896946,0.55,3771.2,3770.0,2.65251]
[1733330897148,1.6084,3771.1,3769.6,2.65274]
[1733330897476,0.55,3770.5,3769.4,2.65293]
[1733330897684,0.55,3770.5,3768.4,1.6312]
[1733330897685,0.55,3770.5,3769.5,2.65286]
[1733330897850,0.55,3770.3,3768.9,1.061654]
[1733330898061,0.55,3770.3,3768.7,2.65343]
[1733330898278,1.5275,3770.2,3769.0,2.65316]
[1733330898487,1.5275,3770.2,3768.4,3.715395]
[1733330898488,0.55,3770.0,3768.4,1.061775]
[1733330898804,0.03100471,3769.5,3768.3,2.65366]
[1733330898948,0.03100471,3769.5,3767.8,1.061951]
[1733330899150,0.03100471,3769.5,3768.5,2.65355]
[1733330899696,0.55,3769.3,3767.3,1.551]
[1733330899895,0.55,3768.9,3767.5,2.65421]
[1733330900091,0.55,3768.9,3767.2,2.65449]
[1733330900092,1.5283,3768.8,3767.2,2.65449]
[1733330900302,0.55,3768.7,3767.2,2.65449]
[1733330900455,0.55,3768.7,3768.1,2.65384]
[1733330900786,0.55,3768.7,3766.4,2.65501]
[1733330900787,1.6437,3768.7,3767.3,2.65437]
[1733330900997,1.6437,3768.7,3766.6,2.6549]
[1733330900998,1.6437,3768.3,3766.6,2.6549]
[1733330901156,1.6437,3768.3,3766.1,1.6447]
[1733330901157,0.55,3768.2,3766.1,1.6447]
[1733330901354,0.55,3768.2,3766.3,1.062382]
[1733330901558,0.55,3768.2,3766.2,2.65519]
[1733330901775,1.6437,3768.3,3766.5,2.65498]
[1733330901979,1.6437,3768.3,3768.1,2.65378]
[1733330903187,2.19173044,3769.1,3767.6,4.24539]
[1733330903395,1.6616,3769.1,3768.7,2.6534]
[1733330903557,1.6616,3769.1,3768.8,2.65334]
[1733330903753,1.6616,3769.1,3768.8,2.65335]
[1733330904163,1.6616,3769.1,3768.9,2.65324]
[1733330905904,1.5513,3769.8,3769.0,2.65322]
[1733330906103,9.05709117,3771.6,3770.1,2.65242]
[1733330906104,1.5513,3770.8,3770.1,2.65242]
[1733330906392,1.5513,3770.8,3770.2,2.65237]
[1733330906702,1.5513,3770.8,3770.3,2.6523]
[1733330907001,1.5513,3770.8,3768.8,2.65336]
[1733330907002,1.5616,3770.6,3767.4,1.5925]
[1733330907153,1.5616,3769.8,3767.8,3.0]
[1733330907357,0.55,3769.7,3769.1,2.65314]
[1733330908056,1.5616,3769.8,3769.2,2.65307]
[1733330908378,1.5616,3769.8,3769.3,2.65299]
[1733330908379,0.55,3769.7,3769.3,2.65299]
[1733330908879,1.5616,3769.8,3769.2,2.65307]
[1733330909249,0.55,3769.7,3768.4,2.65364]
[1733330909391,0.55,3769.7,3769.1,2.65313]
[1733330909554,0.54113898,3769.6,3767.5,2.65422]
[1733330909756,1.6608,3769.4,3768.2,2.65378]
[1733330910078,0.55,3769.3,3767.5,2.65422]
[1733330910393,0.55,3769.3,3767.2,2.65449]
[1733330910561,1.03636,3769.3,3767.2,2.65449]
[1733330910761,1.5427,3768.7,3767.9,2.65396]
[1733330910958,1.5427,3768.7,3767.3,2.65442]
[1733330911190,1.5427,3768.7,3768.2,2.65378]
[1733330911498,1.5427,3768.7,3767.3,2.65442]
[1733330911499,1.5427,3768.7,3768.1,2.65382]
[1733330911719,1.5427,3768.7,3767.8,2.654]
[1733330912063,1.5427,3768.7,3767.9,2.65399]
[1733330912397,1.5427,3768.7,3768.2,2.65377]
[1733330912910,1.5427,3768.7,3768.1,2.65382]
[1733330913086,1.5427,3768.7,3767.8,2.654]
[1733330913688,1.5427,3768.7,3767.9,2.65397]
[1733330913892,1.5427,3768.7,3767.0,2.65463]
[1733330913893,1.5427,3768.7,3767.0,0.55]
[1733330914197,1.5427,3768.7,3766.2,3.717462]
[1733330914198,1.5036,3768.4,3766.8,2.6547]
[1733330914357,1.5036,3767.9,3766.8,2.6547]
[1733330914794,0.53691987,3767.5,3766.6,2.65491]
[1733330914992,1.5036,3767.9,3765.8,1.5472]
[1733330915192,1.5036,3767.9,3765.9,0.39681773]
[1733330915391,1.5036,3767.9,3767.8,2.65406]
[1733330915759,1.6575,3768.5,3767.8,2.65406]
[1733330916004,2.20052364,3768.5,3768.3,2.65371]
[1733330916206,2.20052364,3768.5,3767.1,3.55]
[1733330916207,1.6575,3768.5,3767.1,3.55]
[1733330916357,1.6575,3768.5,3768.0,2.6539]
[1733330916787,1.6575,3768.5,3767.5,2.65424]
[1733330917222,1.6575,3768.5,3767.4,2.65429]
[1733330917436,1.6575,3768.5,3767.5,0.55]
[1733330917635,1.6575,3768.5,3767.2,2.65449]
[1733330917789,1.6575,3768.5,3766.4,2.577701]
[1733330917790,0.16575,3768.4,3766.4,2.577701]
[1733330917988,0.16575,3768.4,3767.2,2.65447]
[1733330918199,0.16575,3768.4,3766.5,2.65493]
[1733330918404,1.6651,3767.9,3766.2,2.65516]
[1733330918920,1.6651,3767.9,3765.8,2.65543]
[1733330918921,1.6651,3767.9,3766.8,2.65475]
[1733330919301,2.65378,3768.2,3765.4,1.5153]
[1733330919302,1.6651,3767.3,3766.5,2.65497]
[1733330919687,1.6651,3767.3,3766.6,2.65489]
[1733330919899,1.6651,3767.3,3765.8,3.0]
[1733330920101,1.6651,3767.3,3765.8,2.65547]
[1733330920303,1.6651,3767.3,3766.9,2.65468]
[1733330920493,1.6651,3767.3,3767.1,2.65455]
[1733330920712,1.5249,3768.1,3767.2,2.65442]
[1733330920912,1.5249,3767.8,3767.0,0.55]
[1733330921147,0.54176023,3767.9,3765.8,2.65541]
[1733330921148,1.5452,3767.6,3766.2,2.65514]
[1733330921291,1.5452,3767.6,3765.8,2.65543]
[1733330921292,1.5452,3767.5,3765.8,2.65543]
[1733330921638,1.5452,3767.5,3765.0,1.5768]
[1733330921639,1.5452,3767.5,3765.2,0.02655102]
[1733330921792,1.5813,3767.4,3766.1,2.65519]
[1733330922199,1.5813,3766.8,3764.5,2.65639]
[1733330922391,0.5262571,3766.9,3765.6,2.65561]
[1733330922392,1.5813,3766.6,3765.6,2.65561]
[1733330922632,1.5813,3766.6,3765.7,2.65551]
[1733330922802,1.5813,3766.6,3765.3,0.02655556]
[1733330923004,1.5813,3766.6,3765.9,2.65538]
[1733330923216,1.5813,3766.6,3766.2,2.65513]
[1733330923443,1.5813,3766.6,3766.1,2.65526]
[1733330923733,1.5813,3766.6,3766.2,0.55]
[1733330923935,1.5813,3766.6,3765.7,0.55]
[1733330924267,1.5813,3766.6,3764.4,1.5355]
[1733330924439,1.5813,3766.6,3766.4,2.65504]
[1733330924646,1.5813,3766.6,3765.9,2.65534]
[1733330925014,1.5813,3766.6,3766.3,2.65507]
[1733330925317,1.5813,3766.6,3766.3,2.65509]
[1733330925520,1.5813,3766.6,3766.4,0.55]
[1733330925895,1.5813,3766.6,3766.2,0.55]
[1733330926536,1.5813,3766.6,3766.5,0.5]
[1733330926721,1.5813,3766.6,3766.5,3.15498]
[1733330926895,1.6279,3767.0,3766.8,2.65475]
[1733330927097,1.6279,3767.0,3766.5,0.5]
[1733330927397,1.6279,3768.8,3766.5,0.5]
[1733330927598,3.1,3768.9,3767.2,2.65445]
[1733330927599,0.54135146,3767.6,3767.2,2.65445]
[1733330927799,0.54135146,3767.6,3766.7,2.65484]
[1733330927800,1.6279,3767.5,3766.7,2.65484]
[1733330928087,1.6279,3767.5,3766.5,0.5]
[1733330928375,1.6279,3767.5,3765.3,3.0]
[1733330928593,0.21692515,3767.4,3766.5,2.65493]
[1733330928768,0.21692515,3767.4,3766.7,2.65483]
[1733330928969,1.6661,3767.3,3766.1,2.65526]
[1733330929192,1.6661,3767.3,3765.1,1.6293]
[1733330929481,1.6661,3766.7,3765.8,2.65547]
[1733330929679,0.21889317,3766.6,3765.9,2.65537]
[1733330930050,0.07324857,3766.4,3764.9,2.65611]
[1733330930253,0.52123854,3766.2,3764.6,1.6312]
[1733330930465,1.6661,3766.3,3765.1,2.65593]
[1733330930678,0.07324857,3766.4,3766.3,2.65512]
[1733330931182,0.07324857,3766.4,3764.9,2.65607]
[1733330931350,0.07324857,3766.4,3765.7,2.65551]
[1733330931551,0.07324857,3766.4,3764.8,2.65618]
[1733330931804,0.07324857,3766.4,3765.7,2.6555]
[1733330932003,0.07324857,3766.4,3765.7,2.65552]
[1733330932199,0.07324857,3766.4,3764.8,2.65618]
[1733330932500,0.53483375,3766.2,3764.9,0.02655645]
[1733330932696,0.07324857,3766.4,3765.2,0.55]
[1733330932899,0.07324857,3766.4,3766.3,3.20512]
[1733330933116,0.07324857,3766.4,3766.3,0.55]
[1733330933423,1.5369,3766.3,3765.0,2.65598]
[1733330933626,1.5369,3766.1,3764.8,2.65617]
[1733330934044,1.5369,3766.1,3764.6,2.65631]
[1733330934324,2.65559,3765.7,3764.1,0.16368452]
[1733330934543,1.5369,3765.6,3764.3,2.65646]
[1733330934691,1.5369,3765.6,3764.1,0.16368452]
[1733330934692,0.52134475,3765.0,3764.1,0.16368452]
[1733330935683,0.52134475,3765.0,3764.3,2.65653]
[1733330935889,1.5369,3764.9,3764.1,0.16368452]
[1733330936688,1.5369,3764.7,3764.1,0.16368452]
[1733330936899,1.5369,3764.4,3764.1,0.16368452]
[1733330937103,1.5369,3764.2,3764.1,0.16368452]
[1733330937402,2.06454419,3764.2,3764.1,0.16368452]
[1733330937597,1.5369,3764.1,3762.8,2.65758]
[1733330937801,1.5369,3764.1,3762.0,2.65816]
[1733330937802,1.5369,3764.0,3762.0,2.65816]
[1733330938101,1.5369,3764.0,3761.8,2.6583]
[1733330938406,1.5369,3764.0,3762.4,2.65783]
[1733330938407,1.5369,3763.8,3762.4,2.65783]
[1733330939056,0.54427587,3762.8,3762.4,2.65783]
[1733330939211,1.5369,3762.7,3761.4,2.65853]
[1733330939444,1.5369,3762.7,3762.3,2.65793]
[1733330939661,1.5369,3762.7,3761.3,1.5738]
[1733330939843,1.5369,3762.7,3761.4,0.15738]
[1733330940169,1.5369,3762.7,3760.8,1.5738]
[1733330940376,1.5369,3762.7,3762.0,2.65815]
[1733330940557,1.5369,3762.7,3762.2,2.65801]
[1733330940742,1.5369,3762.7,3761.0,2.65886]
[1733330940955,1.5369,3762.7,3762.0,2.65813]
[1733330941157,1.74501759,3762.7,3761.1,2.65879]
[1733330941360,1.5369,3762.7,3760.8,1.99900826]
[1733330941561,1.5369,3762.7,3761.3,2.6586]
[1733330941744,1.5369,3762.7,3760.3,1.5738]
[1733330942129,0.52488596,3761.9,3761.7,2.65835]
[1733330942330,1.5369,3762.7,3760.5,0.02658455]
[1733330942568,0.15369,3762.6,3762.3,2.65794]
[1733330942880,0.15369,3762.6,3761.6,2.65843]
[1733330943111,1.5369,3762.7,3762.4,2.65786]
[1733330943234,1.5369,3763.8,3762.9,2.65745]
[1733330943572,1.5369,3763.8,3762.6,3.20773]
[1733330943573,1.5369,3763.8,3762.7,0.55]
[1733330943882,1.5369,3763.8,3763.0,0.55]
[1733330944036,1.5369,3763.8,3763.3,0.55]
[1733330944368,4.0,3763.4,3763.3,2.65724]
[1733330944568,4.0,3763.4,3763.3,3.13399143]
[1733330944728,1.5369,3763.8,3763.3,3.13399143]
[1733330944729,1.5369,3763.8,3763.4,0.55]
[1733330944936,1.5369,3763.8,3763.2,0.55]
[1733330945132,1.5369,3763.8,3763.4,2.65715]
[1733330945461,0.54450339,3763.9,3763.8,3.20688]
[1733330945630,1.6078,3764.3,3764.0,2.65672]
[1733330945976,1.6078,3764.3,3763.8,0.55]
[1733330945977,2.14549843,3764.3,3763.8,0.55]
[1733330946276,2.14549843,3764.3,3763.3,2.65719]
[1733330946431,2.14549843,3764.3,3762.7,3.0]
[1733330946634,2.14549843,3764.3,3764.2,2.6566]
[1733330946854,2.14549843,3764.3,3764.2,3.2066]
[1733330947166,1.6078,3764.3,3764.2,3.2066]
[1733330947372,1.6078,3766.2,3763.9,0.55]
[1733330947580,1.6078,3766.1,3764.7,2.65624]
[1733330947731,1.6078,3766.1,3764.5,0.55]
[1733330947732,1.6078,3765.9,3764.5,2.65638]
[1733330947930,2.65545,3765.9,3764.6,0.55]
[1733330948154,1.6078,3764.7,3763.4,2.65716]
[1733330948355,1.6078,3764.7,3763.2,2.65731]
[1733330948572,1.6078,3764.7,3762.9,5.31504]
[1733330948748,0.21309315,3764.6,3763.1,2.65738]
[1733330948945,0.21309315,3764.6,3764.0,2.65668]
[1733330949271,0.53638665,3764.2,3763.5,2.65707]
[1733330949477,0.53638665,3764.2,3762.6,2.65773]
[1733330949478,0.21309315,3764.6,3762.8,2.65759]
[1733330949680,0.21309315,3764.6,3763.8,2.65684]
[1733330949840,0.21309315,3764.6,3762.5,4.16617]
[1733330949841,0.53574891,3764.3,3763.6,2.65701]
[1733330950044,0.53574891,3764.3,3762.7,2.65766]
[1733330950338,1.6078,3764.7,3764.3,2.65648]
[1733330950659,1.5035,3766.7,3764.6,0.55]
[1733330950857,1.5035,3766.4,3765.3,2.65581]
[1733330951078,4.0,3765.4,3765.3,2.65581]
[1733330951273,4.0,3765.4,3765.3,3.20581]
[1733330951677,4.0,3765.4,3765.3,0.55]
[1733330951999,0.54026619,3765.7,3764.7,0.55]
[1733330952000,1.5507,3765.6,3764.7,0.55]
[1733330952602,0.15035,3766.3,3765.9,2.65539]
[1733330952757,4.0,3766.0,3765.9,2.65539]
[1733330953088,4.0,3766.0,3765.0,2.65604]
[1733330953089,4.0,3766.0,3765.7,0.55]
[1733330953385,4.54435831,3766.0,3764.4,3.55]
[1733330953609,1.5507,3765.9,3765.0,0.55]
[1733330953751,1.5507,3765.4,3763.2,1.6205]
[1733330953950,0.15507,3765.3,3764.1,2.65667]
[1733330954151,1.5507,3765.2,3763.3,0.16205]
[1733330954440,0.54228643,3764.8,3762.8,0.02656643]
[1733330954564,1.5507,3765.2,3764.9,2.65609]
[1733330954885,1.5507,3765.2,3764.2,2.65655]
[1733330954886,0.53320228,3765.1,3764.2,2.65655]
[1733330955091,0.53320228,3765.1,3764.3,2.6565]
[1733330955262,0.53320228,3765.1,3763.5,2.6571]
[1733330955800,0.53320228,3765.1,3763.3,1.6205]
[1733330955982,1.5507,3765.0,3762.8,0.39521546]
[1733330956292,1.647,3764.8,3763.6,2.65701]
[1733330956800,1.647,3764.8,3762.7,4.27815]
[1733330956801,0.53920526,3764.5,3763.2,0.0265707]
[1733330957102,0.53920526,3764.5,3762.7,2.0341098]
[1733330957103,0.53920526,3764.5,3764.2,2.6566]
[1733330957250,1.647,3766.3,3764.7,2.65625]
[1733330957453,0.53421163,3765.0,3764.7,2.65618]
[1733330957776,0.53421163,3765.0,3763.4,2.65717]
[1733330957777,1.647,3764.9,3764.1,0.55]
[1733330958181,1.647,3764.9,3762.5,5.6578]
[1733330958381,1.647,3764.9,3763.8,2.65688]
[1733330958687,1.647,3764.9,3762.5,5.6578]
[1733330958856,1.647,3764.9,3764.8,2.65618]
[1733330959047,1.5275,3766.1,3764.5,0.02656137]
[1733330959247,0.19042308,3765.3,3765.2,2.6559]
[1733330959847,0.19042308,3765.3,3765.2,3.2059]
[1733330960791,1.5798,3767.2,3765.2,0.55]
[1733330961015,1.5798,3767.2,3765.3,3.57654925]
[1733330961169,1.5798,3767.2,3765.6,2.65561]
[1733330961503,1.5798,3767.2,3765.7,2.65554]
[1733330961504,3.18016685,3767.1,3765.7,2.65554]
[1733330961796,3.18016685,3767.1,3765.2,0.55]
[1733330961797,0.52560685,3767.1,3765.2,0.55]
[1733330962022,0.52560685,3767.1,3766.1,2.6552]